[Event "XXII Obert Internacional d'Escacs Sant Marti 2022"]
[Site "Barcelona, Spain"]
[Date "2022.07.15"]
[Round "3.1"]
[White "Macak, Stefan"]
[Black "Asis Gargatagli, Hipolito"]
[Result "0-1"]
[TimeControl "1.30 fb 30"]
[WhiteElo "2363"]
[BlackElo "2514"]

1. e4 {[%clk 01:28:04]} {[%emt 00:02:54]} c5 {[%clk 01:30:44]} {[%emt
00:00:18]} 2. Nf3 {[%clk 01:28:07]} {[%emt 00:00:26]} d6 {[%clk 01:31:09]}
{[%emt 00:00:06]} 3. d4 {[%clk 01:28:09]} {[%emt 00:00:28]} cxd4 {[%clk
01:31:32]} {[%emt 00:00:06]} 4. Nxd4 {[%clk 01:28:34]} {[%emt 00:00:06]} Nf6
{[%clk 01:31:57]} {[%emt 00:00:05]} 5. Nc3 {[%clk 01:28:01]} {[%emt 00:01:03]}
a6 {[%clk 01:32:20]} {[%emt 00:00:06]} 6. f3 {[%clk 01:27:22]} {[%emt
00:01:10]} e5 {[%clk 01:32:30]} {[%emt 00:00:20]} 7. Nb3 {[%clk 01:25:57]}
{[%emt 00:01:53]} Be6 {[%clk 01:32:39]} {[%emt 00:00:22]} 8. Bg5 {[%clk
01:25:58]} {[%emt 00:00:29]} Nbd7 {[%clk 01:30:22]} {[%emt 00:02:47]} 9. Qd2
{[%clk 01:26:09]} {[%emt 00:00:19]} Be7 {[%clk 01:29:34]} {[%emt 00:01:18]} 10.
O-O-O {[%clk 01:26:12]} {[%emt 00:00:26]} b5 {[%clk 01:05:00]} {[%emt
00:25:05]} 11. a3 {[%clk 01:20:24]} {[%emt 00:06:18]} Rc8 {[%clk 00:48:07]}
{[%emt 00:17:22]} 12. Kb1 {[%clk 01:15:13]} {[%emt 00:05:41]} Qc7 {[%clk
00:43:33]} {[%emt 00:05:04]} 13. h4 {[%clk 01:08:22]} {[%emt 00:07:22]} O-O
{[%clk 00:38:06]} {[%emt 00:05:58]} 14. g4 {[%clk 01:07:25]} {[%emt 00:01:27]}
Nb6 {[%clk 00:36:09]} {[%emt 00:02:26]} 15. Bxf6 {[%clk 01:02:49]} {[%emt
00:05:06]} Bxf6 {[%clk 00:35:23]} {[%emt 00:01:16]} 16. g5 {[%clk 01:01:51]}
{[%emt 00:01:28]} Be7 {[%clk 00:35:22]} {[%emt 00:00:31]} 17. Nd5 {[%clk
01:01:29]} {[%emt 00:00:52]} Nxd5 {[%clk 00:27:15]} {[%emt 00:08:38]} 18. exd5
{[%clk 01:01:50]} {[%emt 00:00:10]} Bf5 {[%clk 00:27:37]} {[%emt 00:00:07]} 19.
Bd3 {[%clk 00:59:28]} {[%emt 00:02:52]} Bxd3 {[%clk 00:26:36]} {[%emt
00:01:32]} 20. Qxd3 {[%clk 00:59:43]} {[%emt 00:00:15]} a5 {[%clk 00:21:43]}
{[%emt 00:05:22]} 21. Qxb5 {[%clk 00:35:45]} {[%emt 00:24:28]} Qxc2+ {[%clk
00:22:04]} {[%emt 00:00:10]} 22. Ka2 {[%clk 00:36:05]} {[%emt 00:00:10]} Rb8
{[%clk 00:18:59]} {[%emt 00:03:35]} 23. Qa4 {[%clk 00:33:12]} {[%emt 00:03:23]}
f6 {[%clk 00:16:04]} {[%emt 00:03:24]} 24. Rc1 {[%clk 00:27:25]} {[%emt
00:06:16]} Qe2 {[%clk 00:14:00]} {[%emt 00:02:34]} 25. f4 {[%clk 00:06:50]}
{[%emt 00:21:06]} fxg5 {[%clk 00:12:23]} {[%emt 00:02:07]} 26. Rhe1 {[%clk
00:03:37]} {[%emt 00:03:43]} Qg2 {[%clk 00:03:05]} {[%emt 00:09:47]} 27. Qxa5
{[%clk 00:01:51]} {[%emt 00:02:17]} Rxb3 {[%clk 00:02:14]} {[%emt 00:01:21]} 28.
Kxb3 {[%clk 00:02:05]} {[%emt 00:00:16]} Rb8+ {[%clk 00:02:41]} {[%emt
00:00:02]} 29. Kc4 {[%clk 00:00:38]} {[%emt 00:01:58]} Qxb2 {[%clk 00:02:41]}
{[%emt 00:00:29]} 30. Rc3 {[%clk 00:00:44]} {[%emt 00:00:25]} e4 {[%clk
00:01:49]} {[%emt 00:01:21]} 31. Rxe4 {[%clk 00:00:32]} {[%emt 00:00:42]} Bf6
{[%clk 00:02:08]} {[%emt 00:00:11]} 32. Rce3 {[%clk 00:00:31]} {[%emt
00:00:32]} Rc8+ {[%clk 00:02:20]} {[%emt 00:00:19]} 0-1

[Event "XXII Obert Internacional d'Escacs Sant Marti 2022"]
[Site "Barcelona, Spain"]
[Date "2022.07.15"]
[Round "3.2"]
[White "Perpinya Rofes, Lluis Maria"]
[Black "Pena Gomez, Manuel"]
[Result "0-1"]
[TimeControl "1.30 fb 30"]
[WhiteElo "2297"]
[BlackElo "2492"]

1. e4 {[%clk 01:22:56]} {[%emt 00:08:03]} c5 {[%clk 01:30:57]} {[%emt
00:00:04]} 2. Nc3 {[%clk 01:23:09]} {[%emt 00:00:18]} Nc6 {[%clk 01:31:20]}
{[%emt 00:00:07]} 3. Nge2 {[%clk 01:23:20]} {[%emt 00:00:18]} e6 {[%clk
01:31:39]} {[%emt 00:00:11]} 4. d4 {[%clk 01:23:36]} {[%emt 00:00:14]} cxd4
{[%clk 01:32:06]} {[%emt 00:00:03]} 5. Nxd4 {[%clk 01:23:53]} {[%emt 00:00:13]}
Qc7 {[%clk 01:32:33]} {[%emt 00:00:03]} 6. Be2 {[%clk 01:22:35]} {[%emt
00:01:49]} a6 {[%clk 01:32:55]} {[%emt 00:00:07]} 7. O-O {[%clk 01:22:33]}
{[%emt 00:00:31]} Nf6 {[%clk 01:33:20]} {[%emt 00:00:06]} 8. Kh1 {[%clk
01:22:42]} {[%emt 00:00:21]} Be7 {[%clk 01:33:40]} {[%emt 00:00:10]} 9. f4
{[%clk 01:22:57]} {[%emt 00:00:16]} d6 {[%clk 01:34:08]} {[%emt 00:00:02]} 10.
Be3 {[%clk 01:22:16]} {[%emt 00:01:11]} O-O {[%clk 01:34:34]} {[%emt 00:00:03]}
11. a4 {[%clk 01:21:38]} {[%emt 00:01:08]} Re8 {[%clk 01:34:54]} {[%emt
00:00:10]} 12. Bd3 {[%clk 01:20:42]} {[%emt 00:01:26]} Nb4 {[%clk 01:34:54]}
{[%emt 00:00:30]} 13. Qf3 {[%clk 01:17:50]} {[%emt 00:03:22]} e5 {[%clk
01:35:17]} {[%emt 00:00:08]} 14. fxe5 {[%clk 01:09:33]} {[%emt 00:08:46]} dxe5
{[%clk 01:35:24]} {[%emt 00:00:23]} 15. Nf5 {[%clk 01:09:29]} {[%emt 00:00:33]}
Bxf5 {[%clk 01:35:30]} {[%emt 00:00:24]} 16. Qxf5 {[%clk 01:09:12]} {[%emt
00:00:47]} Rad8 {[%clk 01:35:37]} {[%emt 00:00:23]} 17. Bg5 {[%clk 01:00:04]}
{[%emt 00:09:38]} Qd7 {[%clk 01:26:28]} {[%emt 00:09:40]} 18. Qf3 {[%clk
00:46:55]} {[%emt 00:13:39]} Qg4 {[%clk 01:13:03]} {[%emt 00:13:54]} 19. Bxf6
{[%clk 00:42:21]} {[%emt 00:05:05]} Qxf3 {[%clk 01:13:25]} {[%emt 00:00:07]} 20.
Rxf3 {[%clk 00:42:25]} {[%emt 00:00:27]} Bxf6 {[%clk 01:13:52]} {[%emt
00:00:02]} 21. Raf1 {[%clk 00:39:31]} {[%emt 00:03:23]} Rd4 {[%clk 01:05:25]}
{[%emt 00:08:58]} 22. g4 {[%clk 00:27:26]} {[%emt 00:12:34]} h6 {[%emt
00:02:36]} 23. Ne2 {[%clk 00:27:22]} {[%emt 00:00:32]} Rd6 {[%clk 01:00:50]}
{[%emt 00:03:01]} 24. Ng3 {[%clk 00:25:00]} {[%emt 00:02:52]} Nxd3 {[%clk
00:50:29]} {[%emt 00:10:52]} 25. cxd3 {[%clk 00:20:42]} {[%emt 00:04:49]} Red8
{[%clk 00:50:00]} {[%emt 00:00:58]} 26. Rd1 {[%clk 00:10:56]} {[%emt 00:10:15]}
Rb6 {[%clk 00:45:41]} {[%emt 00:04:50]} 27. Nf5 {[%clk 00:06:54]} {[%emt
00:04:32]} Rd7 {[%clk 00:39:55]} {[%emt 00:06:16]} 28. Rf2 {[%clk 00:03:34]}
{[%emt 00:03:50]} Rb4 {[%clk 00:38:26]} {[%emt 00:01:59]} 29. Nxh6+ {[%clk
00:03:14]} {[%emt 00:00:51]} gxh6 {[%clk 00:38:04]} {[%emt 00:00:53]} 30. Rxf6
{[%clk 00:03:39]} {[%emt 00:00:04]} Rxe4 {[%clk 00:36:52]} {[%emt 00:01:42]} 31.
Rxh6 {[%clk 00:02:13]} {[%emt 00:01:57]} Rxa4 {[%clk 00:37:01]} {[%emt
00:00:21]} 32. Rh5 {[%clk 00:01:26]} {[%emt 00:01:16]} e4 {[%clk 00:37:09]}
{[%emt 00:00:21]} 33. Re1 {[%clk 00:00:47]} {[%emt 00:01:09]} exd3 {[%emt
00:01:14]} 34. Re8+ {[%clk 00:00:59]} {[%emt 00:00:17]} Kg7 {[%clk 00:36:55]}
{[%emt 00:00:01]} 35. Rg5+ {[%clk 00:01:13]} {[%emt 00:00:16]} Kf6 {[%clk
00:37:07]} {[%emt 00:00:18]} 36. Rf5+ {[%clk 00:01:26]} {[%emt 00:00:17]} Kg6
{[%clk 00:37:28]} {[%emt 00:00:08]} 37. Rg8+ {[%clk 00:00:51]} {[%emt
00:01:05]} Kh7 {[%emt 00:00:45]} 0-1

[Event "XXII Obert Internacional d'Escacs Sant Marti 2022"]
[Site "Barcelona, Spain"]
[Date "2022.07.15"]
[Round "3.3"]
[White "Aronyak, Ghosh"]
[Black "Millaret Lores, Francesc"]
[Result "1-0"]
[TimeControl "1.30 fb 30"]
[WhiteElo "2486"]
[BlackElo "2106"]

1. Nf3 {[%clk 01:28:19]} {[%emt 00:02:39]} Nf6 {[%clk 01:30:47]} {[%emt
00:00:14]} 2. c4 {[%clk 01:27:47]} {[%emt 00:01:02]} e6 {[%clk 01:30:37]}
{[%emt 00:00:39]} 3. Nc3 {[%clk 01:27:18]} {[%emt 00:00:59]} d5 {[%clk
01:29:34]} {[%emt 00:01:34]} 4. e3 {[%clk 01:26:52]} {[%emt 00:00:56]} Be7
{[%clk 01:26:02]} {[%emt 00:04:01]} 5. b3 {[%clk 01:26:05]} {[%emt 00:01:17]}
Nbd7 {[%clk 01:19:22]} {[%emt 00:07:11]} 6. Bb2 {[%clk 01:25:42]} {[%emt
00:00:53]} c6 {[%clk 01:10:36]} {[%emt 00:09:16]} 7. d4 {[%clk 01:18:27]}
{[%emt 00:07:44]} b6 {[%clk 01:03:44]} {[%emt 00:07:23]} 8. Bd3 {[%clk
01:17:03]} {[%emt 00:01:53]} Bb7 {[%clk 01:03:55]} {[%emt 00:00:19]} 9. O-O
{[%clk 01:17:27]} {[%emt 00:00:07]} O-O {[%clk 01:01:59]} {[%emt 00:02:26]} 10.
Qe2 {[%clk 01:16:26]} {[%emt 00:01:30]} Re8 {[%clk 01:02:04]} {[%emt 00:00:25]}
11. Rfd1 {[%clk 01:15:10]} {[%emt 00:01:45]} Qc7 {[%clk 00:59:41]} {[%emt
00:02:53]} 12. Rac1 {[%clk 01:02:34]} {[%emt 00:13:06]} Rad8 {[%clk 00:59:51]}
{[%emt 00:00:20]} 13. Bb1 {[%clk 00:50:27]} {[%emt 00:12:38]} Bf8 {[%clk
00:56:20]} {[%emt 00:04:00]} 14. e4 {[%clk 00:45:05]} {[%emt 00:05:52]} dxe4
{[%clk 00:55:55]} {[%emt 00:00:56]} 15. Nxe4 {[%clk 00:45:31]} {[%emt
00:00:04]} Nxe4 {[%clk 00:52:51]} {[%emt 00:03:34]} 16. Qxe4 {[%clk 00:45:46]}
{[%emt 00:00:15]} f5 {[%clk 00:52:30]} {[%emt 00:00:50]} 17. Qc2 {[%clk
00:44:32]} {[%emt 00:01:45]} g6 {[%clk 00:50:29]} {[%emt 00:02:30]} 18. Re1
{[%clk 00:42:36]} {[%emt 00:02:27]} Bg7 {[%clk 00:45:59]} {[%emt 00:04:59]} 19.
c5 {[%clk 00:37:55]} {[%emt 00:05:12]} Qf4 {[%clk 00:23:35]} {[%emt 00:22:53]}
20. b4 {[%clk 00:33:46]} {[%emt 00:04:39]} Nf6 {[%clk 00:18:30]} {[%emt
00:05:35]} 21. Rcd1 {[%clk 00:32:44]} {[%emt 00:01:32]} Nd5 {[%clk 00:17:44]}
{[%emt 00:01:16]} 22. a3 {[%clk 00:32:11]} {[%emt 00:01:04]} Qc7 {[%clk
00:15:10]} {[%emt 00:03:03]} 23. Ba2 {[%clk 00:30:54]} {[%emt 00:01:48]} Bf6
{[%clk 00:14:19]} {[%emt 00:01:20]} 24. Bc1 {[%clk 00:29:57]} {[%emt 00:01:27]}
Kg7 {[%clk 00:13:10]} {[%emt 00:01:39]} 25. Bg5 {[%clk 00:29:06]} {[%emt
00:01:22]} h6 {[%clk 00:13:02]} {[%emt 00:00:37]} 26. Bxf6+ {[%clk 00:29:13]}
{[%emt 00:00:23]} Kxf6 {[%clk 00:13:30]} {[%emt 00:00:02]} 27. Re5 {[%clk
00:28:49]} {[%emt 00:00:55]} Ba6 {[%clk 00:08:56]} {[%emt 00:05:04]} 28. Rde1
{[%clk 00:28:29]} {[%emt 00:00:49]} Qc8 {[%clk 00:08:50]} {[%emt 00:00:36]} 29.
h4 {[%clk 00:26:37]} {[%emt 00:02:22]} Nf4 {[%clk 00:07:37]} {[%emt 00:01:43]}
30. Qd2 {[%clk 00:25:54]} {[%emt 00:01:12]} g5 {[%clk 00:04:39]} {[%emt
00:03:28]} 31. hxg5+ {[%clk 00:25:43]} {[%emt 00:00:41]} hxg5 {[%clk 00:05:06]}
{[%emt 00:00:03]} 32. Nxg5 {[%clk 00:25:47]} {[%emt 00:00:26]} Kxg5 {[%clk
00:03:45]} {[%emt 00:01:51]} 33. g3 {[%clk 00:26:04]} {[%emt 00:00:13]} Rxd4
{[%clk 00:01:55]} {[%emt 00:02:20]} 34. Qxd4 {[%clk 00:26:09]} {[%emt
00:00:25]} Nd5 {[%clk 00:01:43]} {[%emt 00:00:43]} 35. Bxd5 {[%clk 00:26:04]}
{[%emt 00:00:35]} cxd5 {[%clk 00:01:34]} {[%emt 00:00:39]} 36. Qe3+ {[%clk
00:26:24]} {[%emt 00:00:09]} Kf6 {[%clk 00:01:23]} {[%emt 00:00:40]} 37. Qh6+
{[%clk 00:26:41]} {[%emt 00:00:14]} Kf7 {[%clk 00:01:46]} {[%emt 00:00:06]} 38.
Qh5+ {[%clk 00:26:51]} {[%emt 00:00:20]} Kf6 {[%clk 00:02:00]} {[%emt
00:00:17]} 39. Rxf5+ {[%clk 00:26:58]} {[%emt 00:00:24]} 1-0

[Event "XXII Obert Internacional d'Escacs Sant Marti 2022"]
[Site "Barcelona, Spain"]
[Date "2022.07.15"]
[Round "3.4"]
[White "Tanaka, Taira Tyler"]
[Black "Berdayes Ason, Dylan Isidro"]
[Result "0-1"]
[TimeControl "1.30 fb 30"]
[WhiteElo "2242"]
[BlackElo "2480"]

1. Nf3 {[%emt 00:04:43]} d5 {[%emt 00:00:04]} 2. e3 {[%emt 00:00:21]} Nf6
{[%emt 00:00:15]} 3. c4 {[%emt 00:00:15]} e6 {[%emt 00:00:10]} 4. b3 {[%emt
00:00:16]} c5 {[%emt 00:00:09]} 5. Bb2 {[%emt 00:00:25]} Nc6 {[%emt 00:00:03]}
6. cxd5 {[%emt 00:00:38]} exd5 {[%emt 00:00:03]} 7. Bb5 {[%emt 00:04:03]} Bd6
{[%emt 00:00:03]} 8. O-O {[%emt 00:01:30]} O-O {[%emt 00:00:03]} 9. d4 {[%emt
00:02:32]} cxd4 {[%emt 00:00:03]} 10. Bxc6 {[%emt 00:04:10]} bxc6 {[%emt
00:00:16]} 11. Qxd4 {[%emt 00:00:29]} c5 {[%emt 00:04:07]} 12. Qd3 {[%emt
00:07:05]} Bb7 {[%emt 00:03:16]} 13. Nc3 {[%emt 00:02:21]} Re8 {[%emt
00:02:31]} 14. Rfd1 {[%emt 00:02:36]} Qe7 {[%emt 00:03:42]} 15. Qf5 {[%emt
00:05:10]} a6 {[%emt 00:06:45]} 16. Rac1 {[%emt 00:20:13]} Rad8 {[%emt
00:00:03]} 17. h3 {[%emt 00:03:39]} h6 {[%emt 00:00:43]} 18. Qd3 {[%emt
00:03:41]} d4 {[%emt 00:11:10]} 19. exd4 {[%emt 00:03:12]} cxd4 {[%emt
00:00:02]} 20. Re1 {[%emt 00:03:31]} dxc3 {[%emt 00:01:32]} 21. Rxe7 {[%emt
00:05:10]} cxb2 {[%emt 00:00:10]} 22. Rxe8+ {[%emt 00:01:38]} Nxe8 {[%emt
00:00:02]} 23. Qc2 {[%emt 00:01:06]} bxc1=Q+ {[%emt 00:00:06]} 24. Qxc1 {[%emt
00:00:02]} Nf6 {[%emt 00:01:33]} 25. Qc4 {[%emt 00:04:30]} Ne4 {[%emt
00:01:36]} 26. g4 {[%emt 00:02:46]} Bc5 {[%emt 00:01:14]} 27. g5 {[%emt
00:02:15]} hxg5 {[%emt 00:02:28]} 0-1

[Event "XXII Obert Internacional d'Escacs Sant Marti 2022"]
[Site "Barcelona, Spain"]
[Date "2022.07.15"]
[Round "3.5"]
[White "Kovchan, Alexander"]
[Black "Franco Valencia, Angela"]
[Result "1-0"]
[TimeControl "1.30 fb 30"]
[WhiteElo "2468"]
[BlackElo "2070"]

1. e4 {[%clk 01:30:57]} {[%emt 00:00:02]} e5 {[%clk 01:28:23]} {[%emt
00:02:38]} 2. Nf3 {[%clk 01:31:18]} {[%emt 00:00:08]} Nc6 {[%clk 01:28:50]}
{[%emt 00:00:04]} 3. Bb5 {[%clk 01:31:39]} {[%emt 00:00:09]} a6 {[%clk
01:29:06]} {[%emt 00:00:14]} 4. Ba4 {[%clk 01:32:01]} {[%emt 00:00:08]} Nge7
{[%clk 01:29:12]} {[%emt 00:00:23]} 5. c3 {[%clk 01:31:10]} {[%emt 00:01:22]}
g6 {[%clk 01:29:24]} {[%emt 00:00:18]} 6. d4 {[%clk 01:31:11]} {[%emt
00:00:28]} exd4 {[%clk 01:29:48]} {[%emt 00:00:07]} 7. cxd4 {[%clk 01:31:28]}
{[%emt 00:00:13]} b5 {[%clk 01:29:34]} {[%emt 00:00:44]} 8. Bc2 {[%clk
01:31:27]} {[%emt 00:00:30]} Bg7 {[%clk 01:29:54]} {[%emt 00:00:10]} 9. d5
{[%clk 01:30:31]} {[%emt 00:01:27]} Na5 {[%clk 01:29:52]} {[%emt 00:00:32]} 10.
Bd2 {[%clk 01:30:05]} {[%emt 00:00:55]} Bxb2 {[%clk 01:22:16]} {[%emt
00:08:07]} 11. Bxa5 {[%clk 01:29:20]} {[%emt 00:01:15]} Bxa1 {[%clk 01:22:40]}
{[%emt 00:00:06]} 12. Nc3 {[%clk 01:26:53]} {[%emt 00:02:57]} Bb2 {[%clk
01:16:37]} {[%emt 00:06:33]} 13. d6 {[%clk 01:25:50]} {[%emt 00:01:32]} Nc6
{[%clk 01:16:29]} {[%emt 00:00:38]} 14. Nd5 {[%clk 01:25:12]} {[%emt 00:01:08]}
O-O {[%clk 01:16:19]} {[%emt 00:00:40]} 15. Bxc7 {[%clk 01:24:26]} {[%emt
00:01:15]} Qe8 {[%clk 01:16:35]} {[%emt 00:00:15]} 16. h4 {[%clk 01:23:54]}
{[%emt 00:01:01]} h5 {[%clk 01:10:51]} {[%emt 00:06:15]} 17. Kf1 {[%clk
01:12:48]} {[%emt 00:11:35]} Bg7 {[%clk 01:08:27]} {[%emt 00:02:54]} 18. g4
{[%clk 01:00:05]} {[%emt 00:13:13]} Qe6 {[%clk 00:59:54]} {[%emt 00:09:04]} 19.
gxh5 {[%clk 00:56:14]} {[%emt 00:04:20]} gxh5 {[%clk 00:59:50]} {[%emt
00:00:34]} 20. Rg1 {[%clk 00:53:46]} {[%emt 00:02:58]} Qh3+ {[%clk 00:59:23]}
{[%emt 00:00:57]} 21. Ke2 {[%clk 00:50:13]} {[%emt 00:04:04]} Kh8 {[%clk
00:52:34]} 22. Nf4 {[%clk 00:49:44]} {[%emt 00:08:17]} Nd4+ {[%clk 00:52:44]}
23. Nxd4 {[%clk 00:49:49]} {[%emt 00:00:46]} Qxh4 {[%clk 00:53:08]} 24. Rxg7
{[%clk 00:45:07]} {[%emt 00:05:18]} Qxf4 {[%clk 00:53:15]} 25. Nf5 {[%clk
00:42:36]} {[%emt 00:03:24]} Re8 {[%clk 00:52:35]} 26. Rxf7 {[%clk 00:41:14]}
{[%emt 00:03:02]} Rxe4+ {[%clk 00:52:04]} 27. Bxe4 {[%clk 00:41:26]} {[%emt
00:01:21]} Qxe4+ {[%clk 00:52:29]} 28. Ne3 {[%clk 00:41:42]} {[%emt 00:00:18]}
Kg8 {[%clk 00:52:41]} {[%emt 00:00:19]} 29. Rf5 {[%clk 00:41:45]} {[%emt
00:00:27]} 1-0

[Event "XXII Obert Internacional d'Escacs Sant Marti 2022"]
[Site "Barcelona, Spain"]
[Date "2022.07.15"]
[Round "3.6"]
[White "Prats Safont, Sergi"]
[Black "Narciso Dublan, Marc"]
[Result "0-1"]
[TimeControl "1.30 fb 30"]
[WhiteElo "2206"]
[BlackElo "2461"]

1. e4 {[%clk 01:30:57]} {[%emt 00:00:02]} e6 {[%clk 01:30:42]} {[%emt
00:00:18]} 2. d4 {[%clk 01:31:14]} {[%emt 00:00:14]} d5 {[%clk 01:30:58]}
{[%emt 00:00:14]} 3. Bd3 {[%clk 01:30:59]} {[%emt 00:00:46]} dxe4 {[%clk
01:30:59]} {[%emt 00:00:28]} 4. Bxe4 {[%clk 01:31:23]} {[%emt 00:00:06]} Nf6
{[%clk 01:31:14]} {[%emt 00:00:14]} 5. Bf3 {[%clk 01:31:36]} {[%emt 00:00:19]}
c5 {[%clk 01:31:02]} {[%emt 00:00:41]} 6. Ne2 {[%clk 01:31:22]} {[%emt
00:00:44]} Be7 {[%clk 01:29:25]} {[%emt 00:02:07]} 7. O-O {[%clk 01:28:16]}
{[%emt 00:03:36]} O-O {[%clk 01:29:40]} {[%emt 00:00:14]} 8. c4 {[%emt
00:07:00]} Nc6 {[%clk 01:29:02]} {[%emt 00:01:05]} 9. Be3 {[%clk 01:15:31]}
{[%emt 00:06:49]} cxd4 {[%clk 01:28:36]} {[%emt 00:00:56]} 10. Nxd4 {[%clk
01:15:37]} {[%emt 00:00:24]} Ne5 {[%clk 01:28:55]} {[%emt 00:00:11]} 11. Be2
{[%clk 01:14:30]} {[%emt 00:01:38]} Qc7 {[%clk 01:24:11]} {[%emt 00:05:14]} 12.
Nb5 {[%clk 01:11:51]} {[%emt 00:03:09]} Qb8 {[%clk 01:24:14]} {[%emt 00:00:25]}
13. h3 {[%clk 01:10:50]} {[%emt 00:01:32]} Rd8 {[%clk 01:16:09]} {[%emt
00:08:34]} 14. Qc2 {[%clk 01:07:35]} {[%emt 00:03:46]} Nc6 {[%clk 01:07:29]}
{[%emt 00:09:10]} 15. Rd1 {[%clk 00:57:40]} {[%emt 00:10:25]} Rxd1+ {[%clk
01:06:55]} {[%emt 00:01:04]} 16. Qxd1 {[%clk 00:57:39]} {[%emt 00:00:32]} e5
{[%clk 00:59:26]} {[%emt 00:07:58]} 17. N5c3 {[%clk 00:55:03]} {[%emt
00:03:07]} Bf5 {[%clk 00:58:32]} {[%emt 00:01:23]} 18. a3 {[%clk 00:52:45]}
{[%emt 00:02:48]} Qc7 {[%clk 00:48:37]} {[%emt 00:10:25]} 19. Nd5 {[%clk
00:48:56]} {[%emt 00:04:20]} Nxd5 {[%clk 00:48:55]} {[%emt 00:00:10]} 20. cxd5
{[%clk 00:49:12]} {[%emt 00:00:15]} Nd4 {[%clk 00:49:03]} {[%emt 00:00:21]} 21.
Nc3 {[%clk 00:31:57]} {[%emt 00:17:45]} Nc2 {[%clk 00:46:54]} {[%emt 00:02:39]}
22. Nb5 {[%clk 00:28:31]} {[%emt 00:03:57]} Qd8 {[%clk 00:44:26]} {[%emt
00:02:57]} 23. Rc1 {[%clk 00:20:22]} {[%emt 00:08:40]} Nxe3 {[%clk 00:44:24]}
{[%emt 00:00:32]} 24. fxe3 {[%clk 00:20:47]} {[%emt 00:00:05]} Qb6 {[%clk
00:39:54]} {[%emt 00:05:00]} 25. Rc3 {[%clk 00:20:59]} {[%emt 00:00:19]} Rd8
{[%clk 00:34:46]} {[%emt 00:05:38]} 26. Qf1 {[%clk 00:08:16]} {[%emt 00:13:12]}
g6 {[%clk 00:29:00]} {[%emt 00:06:15]} 27. Kh2 {[%clk 00:05:59]} {[%emt
00:02:47]} a6 {[%clk 00:24:26]} {[%emt 00:05:04]} 28. g4 {[%clk 00:04:54]}
{[%emt 00:01:35]} Bd7 {[%clk 00:16:03]} {[%emt 00:08:53]} 29. d6 {[%clk
00:04:55]} {[%emt 00:00:30]} Bh4 {[%clk 00:14:45]} {[%emt 00:01:46]} 30. Nc7
{[%clk 00:03:30]} {[%emt 00:01:56]} Qxb2 {[%clk 00:10:25]} {[%emt 00:04:50]} 31.
Rd3 {[%clk 00:02:39]} {[%emt 00:01:21]} Bc6 {[%clk 00:09:27]} {[%emt 00:01:27]}
32. Kg1 {[%clk 00:02:13]} {[%emt 00:00:57]} Be4 {[%clk 00:06:04]} {[%emt
00:03:52]} 33. Nd5 {[%clk 00:01:44]} {[%emt 00:00:59]} Rxd6 {[%clk 00:05:50]}
{[%emt 00:00:45]} 34. Ne7+ {[%clk 00:00:33]} {[%emt 00:01:42]} Bxe7 {[%clk
00:06:11]} {[%emt 00:00:08]} 35. Rxd6 {[%clk 00:00:49]} {[%emt 00:00:14]} Bxd6
{[%clk 00:06:28]} {[%emt 00:00:13]} 36. Bc4 {[%clk 00:00:32]} {[%emt 00:00:47]}
Kg7 {[%clk 00:05:00]} {[%emt 00:01:58]} 37. Qxf7+ {[%clk 00:00:46]} {[%emt
00:00:16]} Kh6 {[%clk 00:05:28]} {[%emt 00:00:02]} 38. Bf1 {[%clk 00:00:32]}
{[%emt 00:00:44]} Bc5 {[%clk 00:04:43]} {[%emt 00:01:14]} 39. g5+ {[%clk
00:00:33]} {[%emt 00:00:29]} Kxg5 {[%clk 00:05:02]} {[%emt 00:00:11]} 40. h4+
{[%clk 00:00:38]} {[%emt 00:00:26]} Kh6 {[%clk 00:05:07]} {[%emt 00:00:24]} 0-1